[Event "*** Titled Tuesday Blitz"]
[Site "Chess.com"]
[Date "2020.04.21"]
[Round "8"]
[White "checkmatequen"]
[Black "Aikiigm"]
[Result "0-1"]
[WhiteElo "2230"]
[BlackElo "2556"]
[TimeControl "180+1"]
[EndTime "11:36:32 PDT"]
[Termination "Aikiigm won by resignation"]

1. e4 {[%clk 0:03:00.9]} 1... Nf6 {[%clk 0:03:00.9]} 2. e5 {[%clk 0:03:00.5]}
2... Nd5 {[%clk 0:02:58.8]} 3. d4 {[%clk 0:03:01.4]} 3... d6 {[%clk 0:02:59]} 4.
c4 {[%clk 0:03:02.3]} 4... Nb6 {[%clk 0:02:58.7]} 5. exd6 {[%clk 0:03:03.2]}
5... cxd6 {[%clk 0:02:58.7]} 6. Nc3 {[%clk 0:03:04.1]} 6... g6 {[%clk
0:02:59.1]} 7. Be3 {[%clk 0:03:04]} 7... Bg7 {[%clk 0:02:59.5]} 8. Rc1 {[%clk
0:03:04.5]} 8... O-O {[%clk 0:03:00.1]} 9. b3 {[%clk 0:03:05.2]} 9... Bf5 {[%clk
0:03:00.4]} 10. Nf3 {[%clk 0:03:04.3]} 10... d5 {[%clk 0:02:59.9]} 11. c5 {[%clk
0:03:04.2]} 11... Nc8 {[%clk 0:03:00.5]} 12. Bd3 {[%clk 0:03:01.7]} 12... Bg4
{[%clk 0:03:00.5]} 13. h3 {[%clk 0:03:01.1]} 13... Bxf3 {[%clk 0:03:00.6]} 14.
Qxf3 {[%clk 0:03:02]} 14... e6 {[%clk 0:03:01.2]} 15. O-O {[%clk 0:03:02]} 15...
Nc6 {[%clk 0:03:01.4]} 16. a3 {[%clk 0:02:57.4]} 16... Nxd4 {[%clk 0:03:00.1]}
17. Bxd4 {[%clk 0:02:56.5]} 17... Bxd4 {[%clk 0:03:01]} 18. Nb5 {[%clk
0:02:55.3]} 18... Bg7 {[%clk 0:02:58.2]} 19. Qg3 {[%clk 0:02:52.2]} 19... a6
{[%clk 0:02:58.4]} 20. Nc3 {[%clk 0:02:36.2]} 20... Ne7 {[%clk 0:02:57.4]} 21.
b4 {[%clk 0:02:34.2]} 21... Nc6 {[%clk 0:02:55.7]} 22. Na4 {[%clk 0:02:32.3]}
22... Qf6 {[%clk 0:02:53.9]} 23. Nb6 {[%clk 0:02:31.7]} 23... Rad8 {[%clk
0:02:52.4]} 24. b5 {[%clk 0:02:31]} 24... axb5 {[%clk 0:02:51.6]} 25. Bxb5
{[%clk 0:02:31.9]} 25... Bh6 {[%clk 0:02:51.9]} 26. Rb1 {[%clk 0:02:28.3]} 26...
Bf4 {[%clk 0:02:51.3]} 27. Qd3 {[%clk 0:02:23]} 27... Ne5 {[%clk 0:02:50.4]} 28.
Qb3 {[%clk 0:02:21.4]} 28... Qe7 {[%clk 0:02:18]} 29. Qb4 {[%clk 0:02:14.1]}
29... Bh6 {[%clk 0:02:15]} 30. Rfe1 {[%clk 0:02:12.4]} 30... Nc6 {[%clk
0:02:09.2]} 31. Bxc6 {[%clk 0:02:11.4]} 31... bxc6 {[%clk 0:02:10.1]} 32. a4
{[%clk 0:02:11.6]} 32... Qa7 {[%clk 0:02:09.9]} 33. a5 {[%clk 0:02:11.1]} 33...
Bg7 {[%clk 0:02:09]} 34. Re3 {[%clk 0:02:06.9]} 34... e5 {[%clk 0:02:08.7]} 35.
Ra3 {[%clk 0:02:06.5]} 35... Qa6 {[%clk 0:02:05.9]} 36. Qd2 {[%clk 0:02:01.3]}
36... e4 {[%clk 0:02:03.9]} 37. Na4 {[%clk 0:01:58.7]} 37... d4 {[%clk
0:02:00.7]} 38. Rb6 {[%clk 0:01:58.3]} 38... Qc4 {[%clk 0:02:00.6]} 39. a6
{[%clk 0:01:51.8]} 39... Rfe8 {[%clk 0:01:59.7]} 40. a7 {[%clk 0:01:48.2]} 40...
e3 {[%clk 0:01:59.9]} 41. fxe3 {[%clk 0:01:47.8]} 41... dxe3 {[%clk 0:02:00.2]}
42. Rxe3 {[%clk 0:01:47]} 42... Qxa4 {[%clk 0:01:56.4]} 43. Rxe8+ {[%clk
0:01:42.9]} 43... Rxe8 {[%clk 0:01:56]} 44. Rb8 {[%clk 0:01:43.2]} 44... Qa1+
{[%clk 0:01:55]} 45. Kh2 {[%clk 0:01:41.5]} 45... Qe5+ {[%clk 0:01:51.5]} 46. g3
{[%clk 0:01:39.5]} 46... Rxb8 {[%clk 0:01:51.8]} 47. axb8=Q+ {[%clk 0:01:37.8]}
47... Qxb8 {[%clk 0:01:52.7]} 48. Qd7 {[%clk 0:01:36.8]} 48... Bf8 {[%clk
0:01:52.8]} 49. Qxc6 {[%clk 0:01:36.4]} 49... Qb2+ {[%clk 0:01:52.8]} 50. Kh1
{[%clk 0:01:35.6]} 50... Qc1+ {[%clk 0:01:53.3]} 51. Kh2 {[%clk 0:01:35.8]}
51... Qxc5 {[%clk 0:01:53.8]} 52. Qf3 {[%clk 0:01:35.6]} 52... Qe5 {[%clk
0:01:52.5]} 53. h4 {[%clk 0:01:35.4]} 53... Bd6 {[%clk 0:01:52.5]} 54. Kh3
{[%clk 0:01:35.4]} 54... Qxg3+ {[%clk 0:01:52.6]} 55. Qxg3 {[%clk 0:01:35.2]}
55... Bxg3 {[%clk 0:01:53.3]} 56. Kxg3 {[%clk 0:01:36.1]} 56... f5 {[%clk
0:01:53.4]} 57. Kf4 {[%clk 0:01:36]} 57... Kg7 {[%clk 0:01:53.6]} 58. h5 {[%clk
0:01:35.5]} 58... Kf6 {[%clk 0:01:52.9]} 0-1

[Event "*** Titled Tuesday Blitz"]
[Site "Chess.com"]
[Date "2020.04.21"]
[Round "8"]
[White "Kawhi_Leonard2"]
[Black "Orest_Vovk"]
[Result "0-1"]
[WhiteElo "2299"]
[BlackElo "2448"]
[TimeControl "180+1"]
[EndTime "11:36:39 PDT"]
[Termination "Orest_Vovk won by resignation"]

1. e4 {[%clk 0:03:00.9]} 1... Nc6 {[%clk 0:02:59.4]} 2. Nf3 {[%clk 0:02:59.9]}
2... d5 {[%clk 0:02:59.2]} 3. exd5 {[%clk 0:02:59.2]} 3... Qxd5 {[%clk
0:03:00.1]} 4. Nc3 {[%clk 0:02:58.7]} 4... Qa5 {[%clk 0:03:00.6]} 5. d4 {[%clk
0:02:58.4]} 5... Bg4 {[%clk 0:03:01.1]} 6. h3 {[%clk 0:02:55.5]} 6... Bxf3
{[%clk 0:03:00.5]} 7. Qxf3 {[%clk 0:02:54.8]} 7... O-O-O {[%clk 0:03:01.4]} 8.
Qxf7 {[%clk 0:02:30.9]} 8... Nxd4 {[%clk 0:02:57.3]} 9. Bd3 {[%clk 0:02:30.4]}
9... Nf6 {[%clk 0:02:52.8]} 10. O-O {[%clk 0:02:27.7]} 10... e6 {[%clk
0:02:50.4]} 11. Be3 {[%clk 0:02:24.2]} 11... Rd7 {[%clk 0:02:49.3]} 12. Qxd7+
{[%clk 0:02:07.9]} 12... Nxd7 {[%clk 0:02:48.6]} 13. Bxd4 {[%clk 0:02:08.6]}
13... Bd6 {[%clk 0:02:47.8]} 14. Rfe1 {[%clk 0:02:04.9]} 14... e5 {[%clk
0:02:40]} 15. Be3 {[%clk 0:02:04.4]} 15... Nf6 {[%clk 0:02:32.7]} 16. Nb5 {[%clk
0:01:59.6]} 16... a6 {[%clk 0:02:29.6]} 17. Nxd6+ {[%clk 0:01:57.9]} 17... cxd6
{[%clk 0:02:30.5]} 18. c4 {[%clk 0:01:54]} 18... Kb8 {[%clk 0:02:23.8]} 19. a3
{[%clk 0:01:54]} 19... Rc8 {[%clk 0:02:17.1]} 20. b4 {[%clk 0:01:53.2]} 20...
Qa4 {[%clk 0:02:17]} 21. Bf1 {[%clk 0:01:45.9]} 21... Qb3 {[%clk 0:02:08.5]} 22.
Red1 {[%clk 0:01:44]} 22... Ne4 {[%clk 0:02:04.7]} 23. Bd3 {[%clk 0:01:24.7]}
23... Nc3 {[%clk 0:02:00.8]} 24. Rd2 {[%clk 0:01:24.5]} 24... e4 {[%clk
0:01:59.4]} 25. Bf1 {[%clk 0:01:24.4]} 25... Rd8 {[%clk 0:01:53.1]} 26. Bf4
{[%clk 0:01:18]} 26... Ka8 {[%clk 0:01:47.4]} 27. Bxd6 {[%clk 0:01:13.8]} 27...
e3 {[%clk 0:01:47.3]} 28. Rd3 {[%clk 0:00:56.6]} 28... e2 {[%clk 0:01:46.8]} 29.
Rc1 {[%clk 0:00:49.6]} 29... exf1=Q+ {[%clk 0:01:44.9]} 30. Kxf1 {[%clk
0:00:49.8]} 30... Rxd6 {[%clk 0:01:35]} 31. Rxd6 {[%clk 0:00:41]} 31... Qxc4+
{[%clk 0:01:34.3]} 0-1

[Event "*** Titled Tuesday Blitz"]
[Site "Chess.com"]
[Date "2020.04.21"]
[Round "8"]
[White "Bastiandash"]
[Black "tonyq11"]
[Result "0-1"]
[WhiteElo "1985"]
[BlackElo "2234"]
[TimeControl "180+1"]
[EndTime "11:36:44 PDT"]
[Termination "tonyq11 won by resignation"]

1. Nf3 {[%clk 0:03:00.9]} 1... Nf6 {[%clk 0:02:59.6]} 2. d4 {[%clk 0:03:01.8]}
2... d5 {[%clk 0:02:58.3]} 3. c3 {[%clk 0:03:01.3]} 3... c5 {[%clk 0:02:57.4]}
4. Bg5 {[%clk 0:03:01.8]} 4... e6 {[%clk 0:02:56]} 5. e3 {[%clk 0:03:00.7]} 5...
Nbd7 {[%clk 0:02:54.1]} 6. Bd3 {[%clk 0:03:00.3]} 6... Be7 {[%clk 0:02:53.4]} 7.
O-O {[%clk 0:02:59.7]} 7... O-O {[%clk 0:02:53.2]} 8. Nbd2 {[%clk 0:02:58.6]}
8... h6 {[%clk 0:02:51.9]} 9. Bh4 {[%clk 0:02:58]} 9... b6 {[%clk 0:02:51.4]}
10. Ne5 {[%clk 0:02:57.6]} 10... Bb7 {[%clk 0:02:50.6]} 11. f4 {[%clk
0:02:56.7]} 11... Ne4 {[%clk 0:02:49]} 12. Bxe7 {[%clk 0:02:55.1]} 12... Qxe7
{[%clk 0:02:48.5]} 13. Qe2 {[%clk 0:02:48.2]} 13... Rac8 {[%clk 0:02:42]} 14.
Rf3 {[%clk 0:02:45.1]} 14... Rfd8 {[%clk 0:02:33.8]} 15. Raf1 {[%clk 0:02:42]}
15... f6 {[%clk 0:02:26]} 16. Nxd7 {[%clk 0:02:22.9]} 16... Rxd7 {[%clk
0:02:23.6]} 17. Bxe4 {[%clk 0:02:20.1]} 17... dxe4 {[%clk 0:02:22.2]} 18. Rg3
{[%clk 0:02:20.6]} 18... e5 {[%clk 0:02:13.7]} 19. fxe5 {[%clk 0:02:15.5]} 19...
fxe5 {[%clk 0:02:13.5]} 20. dxe5 {[%clk 0:01:30.6]} 20... Qxe5 {[%clk
0:02:04.8]} 21. Nc4 {[%clk 0:01:30.1]} 21... Qe6 {[%clk 0:01:59]} 22. Qg4 {[%clk
0:01:20.6]} 22... Re8 {[%clk 0:01:31.1]} 23. Rf8+ {[%clk 0:00:46.6]} 23... Kxf8
{[%clk 0:01:21.9]} 0-1

[Event "*** Titled Tuesday Blitz"]
[Site "Chess.com"]
[Date "2020.04.21"]
[Round "8"]
[White "Witik"]
[Black "Kildepiotr"]
[Result "1-0"]
[WhiteElo "2702"]
[BlackElo "2535"]
[TimeControl "180+1"]
[EndTime "11:36:46 PDT"]
[Termination "Witik won by resignation"]

1. d4 {[%clk 0:03:00.9]} 1... c5 {[%clk 0:02:58.8]} 2. d5 {[%clk 0:02:57.7]}
2... e5 {[%clk 0:02:58.7]} 3. Nc3 {[%clk 0:02:57.3]} 3... d6 {[%clk 0:02:58.6]}
4. e4 {[%clk 0:02:57.4]} 4... Be7 {[%clk 0:02:58.9]} 5. Bb5+ {[%clk 0:02:57.7]}
5... Nd7 {[%clk 0:02:58.7]} 6. a4 {[%clk 0:02:58.6]} 6... Bg5 {[%clk 0:02:57.9]}
7. Bxg5 {[%clk 0:02:58.4]} 7... Qxg5 {[%clk 0:02:57.3]} 8. Nf3 {[%clk
0:02:59.3]} 8... Qd8 {[%clk 0:02:57.1]} 9. O-O {[%clk 0:02:58.2]} 9... Ne7
{[%clk 0:02:57]} 10. Re1 {[%clk 0:02:58.1]} 10... O-O {[%clk 0:02:56.9]} 11. Nd2
{[%clk 0:02:58]} 11... Nf6 {[%clk 0:02:54.3]} 12. a5 {[%clk 0:02:57.1]} 12...
Ng6 {[%clk 0:02:49.4]} 13. a6 {[%clk 0:02:57]} 13... b6 {[%clk 0:02:37.3]} 14.
Bc6 {[%clk 0:02:51.7]} 14... Rb8 {[%clk 0:02:31.8]} 15. Nb5 {[%clk 0:02:51.6]}
15... Qe7 {[%clk 0:02:31.5]} 16. Nc4 {[%clk 0:02:51.1]} 16... Rd8 {[%clk
0:02:27.5]} 17. c3 {[%clk 0:02:46.9]} 17... h5 {[%clk 0:02:24.8]} 18. b4 {[%clk
0:02:45.6]} 18... h4 {[%clk 0:02:21.4]} 19. Re3 {[%clk 0:02:14.6]} 19... Nf4
{[%clk 0:02:18.4]} 20. g3 {[%clk 0:01:53.2]} 20... hxg3 {[%clk 0:02:13]} 21.
fxg3 {[%clk 0:01:50.3]} 21... Nh3+ {[%clk 0:02:01.6]} 22. Kg2 {[%clk 0:01:48.9]}
22... Bg4 {[%clk 0:02:00.8]} 23. Qd3 {[%clk 0:01:42.3]} 23... Nh5 {[%clk
0:01:57.9]} 24. Rf1 {[%clk 0:01:38]} 24... Qg5 {[%clk 0:01:48.3]} 25. Kh1 {[%clk
0:01:35.9]} 25... Bc8 {[%clk 0:01:38.1]} 26. Nbxd6 {[%clk 0:01:28]} 26... Bxa6
{[%clk 0:01:30.5]} 27. b5 {[%clk 0:01:24.8]} 27... N5f4 {[%clk 0:01:12.6]} 28.
gxf4 {[%clk 0:01:21.1]} 28... Nxf4 {[%clk 0:01:10.8]} 29. Rg3 {[%clk 0:01:11.7]}
29... Qh5 {[%clk 0:01:01.6]} 30. Qf3 {[%clk 0:01:06.4]} 1-0

[Event "*** Titled Tuesday Blitz"]
[Site "Chess.com"]
[Date "2020.04.21"]
[Round "8"]
[White "UmutErdemGunduz"]
[Black "Grandmaster2B"]
[Result "1-0"]
[WhiteElo "2372"]
[BlackElo "2515"]
[TimeControl "180+1"]
[EndTime "11:36:46 PDT"]
[Termination "UmutErdemGunduz won by resignation"]

1. Nf3 {[%clk 0:01:22]} 1... Nf6 {[%clk 0:02:58.1]} 2. c4 {[%clk 0:01:22.1]}
2... e6 {[%clk 0:02:58.3]} 3. b3 {[%clk 0:01:22]} 3... c5 {[%clk 0:02:56.9]} 4.
g3 {[%clk 0:01:22]} 4... Nc6 {[%clk 0:02:57.3]} 5. Bb2 {[%clk 0:01:22.2]} 5...
Be7 {[%clk 0:02:57.3]} 6. Bg2 {[%clk 0:01:22.7]} 6... O-O {[%clk 0:02:56.4]} 7.
O-O {[%clk 0:01:23.3]} 7... b6 {[%clk 0:02:56.6]} 8. Nc3 {[%clk 0:01:23.1]} 8...
Bb7 {[%clk 0:02:56.7]} 9. d4 {[%clk 0:01:23.2]} 9... cxd4 {[%clk 0:02:55]} 10.
Nxd4 {[%clk 0:01:24.1]} 10... a6 {[%clk 0:02:43.1]} 11. Rc1 {[%clk 0:01:23.6]}
11... Rc8 {[%clk 0:02:42.1]} 12. Qd2 {[%clk 0:01:22.4]} 12... Qc7 {[%clk
0:02:33.7]} 13. Nd5 {[%clk 0:01:19.1]} 13... Qd8 {[%clk 0:02:15.4]} 14. Nxe7+
{[%clk 0:01:17.2]} 14... Qxe7 {[%clk 0:02:16.3]} 15. Rfd1 {[%clk 0:01:16.7]}
15... Rfd8 {[%clk 0:02:14.8]} 16. Qe3 {[%clk 0:01:06.5]} 16... Na5 {[%clk
0:01:27.9]} 17. Nf5 {[%clk 0:00:54.3]} 17... Qb4 {[%clk 0:01:12.8]} 18. Qg5
{[%clk 0:00:43.1]} 18... exf5 {[%clk 0:01:06.5]} 19. Bxf6 {[%clk 0:00:41.7]}
19... g6 {[%clk 0:01:04.1]} 20. Bxd8 {[%clk 0:00:37.8]} 20... Bxg2 {[%clk
0:01:01.7]} 1-0

[Event "*** Titled Tuesday Blitz"]
[Site "Chess.com"]
[Date "2020.04.21"]
[Round "8"]
[White "FCChelsea14"]
[Black "claudyna16"]
[Result "1-0"]
[WhiteElo "2748"]
[BlackElo "2519"]
[TimeControl "180+1"]
[EndTime "11:36:48 PDT"]
[Termination "FCChelsea14 won by resignation"]

1. d4 {[%clk 0:03:00.9]} 1... Nf6 {[%clk 0:02:59.5]} 2. c4 {[%clk 0:03:01]} 2...
g6 {[%clk 0:02:59.8]} 3. Nc3 {[%clk 0:03:01.1]} 3... Bg7 {[%clk 0:03:00.1]} 4.
e4 {[%clk 0:03:01.4]} 4... O-O {[%clk 0:03:00.7]} 5. Nf3 {[%clk 0:03:01.5]} 5...
d6 {[%clk 0:03:01.1]} 6. Be2 {[%clk 0:03:01.9]} 6... e5 {[%clk 0:03:01.4]} 7.
Be3 {[%clk 0:03:02.3]} 7... exd4 {[%clk 0:02:59.3]} 8. Nxd4 {[%clk 0:03:02.1]}
8... Re8 {[%clk 0:02:59.9]} 9. f3 {[%clk 0:03:02.6]} 9... c6 {[%clk 0:03:00]}
10. Bf2 {[%clk 0:03:03]} 10... d5 {[%clk 0:02:58.3]} 11. exd5 {[%clk 0:03:03.9]}
11... cxd5 {[%clk 0:02:58.2]} 12. O-O {[%clk 0:03:04.8]} 12... Nc6 {[%clk
0:02:57.4]} 13. c5 {[%clk 0:03:05.1]} 13... Nh5 {[%clk 0:02:42.6]} 14. Qd2
{[%clk 0:03:03.6]} 14... Be5 {[%clk 0:02:34.6]} 15. g3 {[%clk 0:02:59]} 15...
Ng7 {[%clk 0:02:14.3]} 16. Rfe1 {[%clk 0:02:58.4]} 16... Ne6 {[%clk 0:02:00.9]}
17. Nxe6 {[%clk 0:02:56.7]} 17... Bxe6 {[%clk 0:01:59.4]} 18. Nb5 {[%clk
0:02:49.7]} 18... a6 {[%clk 0:01:44.8]} 19. Nd4 {[%clk 0:02:48.5]} 19... Bg7
{[%clk 0:01:40.4]} 20. Rad1 {[%clk 0:02:47.5]} 20... Qa5 {[%clk 0:01:32.2]} 21.
Qxa5 {[%clk 0:02:42.4]} 21... Nxa5 {[%clk 0:01:33.1]} 22. Bf1 {[%clk 0:02:35.4]}
22... Nc6 {[%clk 0:01:32.3]} 23. f4 {[%clk 0:02:30.7]} 23... Bg4 {[%clk
0:01:30.7]} 24. Rxe8+ {[%clk 0:02:25.4]} 24... Rxe8 {[%clk 0:01:31.6]} 25. Rd2
{[%clk 0:02:25.7]} 25... Nxd4 {[%clk 0:01:11.5]} 26. Bxd4 {[%clk 0:02:25.2]}
26... Re1 {[%clk 0:01:12.1]} 27. Kf2 {[%clk 0:02:18]} 27... Ra1 {[%clk
0:01:11.8]} 28. a3 {[%clk 0:02:08.7]} 28... Rb1 {[%clk 0:01:07.1]} 29. Bxg7
{[%clk 0:02:06.2]} 29... Kxg7 {[%clk 0:01:01.4]} 30. Bg2 {[%clk 0:02:06.4]}
30... Be6 {[%clk 0:00:58.9]} 31. Ke3 {[%clk 0:02:05.1]} 31... Kf6 {[%clk
0:00:57.8]} 32. Kd4 {[%clk 0:02:05.1]} 32... h5 {[%clk 0:00:56.3]} 33. Bxd5
{[%clk 0:02:04.4]} 33... Bc8 {[%clk 0:00:55.9]} 34. b4 {[%clk 0:01:58]} 34...
Ra1 {[%clk 0:00:54.8]} 35. Ba2 {[%clk 0:01:54.4]} 35... Be6 {[%clk 0:00:50.8]}
36. Bxe6 {[%clk 0:01:52.7]} 36... Kxe6 {[%clk 0:00:51.7]} 37. Rd3 {[%clk
0:01:50.5]} 37... Kf5 {[%clk 0:00:50.1]} 38. h4 {[%clk 0:01:47.1]} 38... Kg4
{[%clk 0:00:49.9]} 39. Kd5 {[%clk 0:01:47.1]} 39... Rc1 {[%clk 0:00:47.6]} 40.
Kd6 {[%clk 0:01:47]} 40... f5 {[%clk 0:00:45.7]} 41. Kc7 {[%clk 0:01:46.8]}
41... Rg1 {[%clk 0:00:44.1]} 42. Kxb7 {[%clk 0:01:46.3]} 42... Rc1 {[%clk
0:00:45]} 43. c6 {[%clk 0:01:45.7]} 1-0

[Event "*** Titled Tuesday Blitz"]
[Site "Chess.com"]
[Date "2020.04.21"]
[Round "8"]
[White "ChristianAlm"]
[Black "FMJoseHerrera"]
[Result "0-1"]
[WhiteElo "2467"]
[BlackElo "2619"]
[TimeControl "180+1"]
[EndTime "11:36:55 PDT"]
[Termination "FMJoseHerrera won by resignation"]

1. d4 {[%clk 0:02:58.1]} 1... Nf6 {[%clk 0:02:59.5]} 2. Bg5 {[%clk 0:02:57.6]}
2... Ne4 {[%clk 0:02:59.3]} 3. Bf4 {[%clk 0:02:57.2]} 3... c5 {[%clk 0:02:59.1]}
4. f3 {[%clk 0:02:55.2]} 4... Qa5+ {[%clk 0:02:58.5]} 5. c3 {[%clk 0:02:55]}
5... Nf6 {[%clk 0:02:58.4]} 6. d5 {[%clk 0:02:50.9]} 6... Qb6 {[%clk 0:02:58.4]}
7. Bc1 {[%clk 0:02:37.2]} 7... e6 {[%clk 0:02:45.1]} 8. c4 {[%clk 0:02:35.3]}
8... g6 {[%clk 0:02:42.7]} 9. Nc3 {[%clk 0:02:34.6]} 9... Bg7 {[%clk 0:02:42.2]}
10. e4 {[%clk 0:02:34.8]} 10... O-O {[%clk 0:02:41.8]} 11. Bd3 {[%clk
0:02:34.9]} 11... exd5 {[%clk 0:02:40.4]} 12. exd5 {[%clk 0:02:33.3]} 12... d6
{[%clk 0:02:36.4]} 13. Nge2 {[%clk 0:02:33]} 13... Nbd7 {[%clk 0:02:36.7]} 14.
O-O {[%clk 0:02:30.9]} 14... Ne5 {[%clk 0:02:36.3]} 15. Rb1 {[%clk 0:02:25.7]}
15... Re8 {[%clk 0:02:32.3]} 16. Bf4 {[%clk 0:02:07.3]} 16... Nxd3 {[%clk
0:02:30.1]} 17. Qxd3 {[%clk 0:02:06.6]} 17... Bf5 {[%clk 0:02:31]} 18. Qd2
{[%clk 0:01:54.2]} 18... Bxb1 {[%clk 0:02:30.4]} 19. Rxb1 {[%clk 0:01:55.1]}
19... Nd7 {[%clk 0:02:29.4]} 20. Ne4 {[%clk 0:01:50.4]} 20... Ne5 {[%clk
0:02:25.5]} 21. b3 {[%clk 0:01:44.5]} 21... Nxc4 {[%clk 0:02:25.1]} 22. Qc1
{[%clk 0:01:31.2]} 22... Ne5 {[%clk 0:02:23.7]} 23. N2c3 {[%clk 0:01:24.4]}
23... f5 {[%clk 0:02:04.2]} 24. Na4 {[%clk 0:01:19.3]} 24... Qa6 {[%clk
0:01:51.4]} 25. Ng5 {[%clk 0:01:08.9]} 25... Nd3 {[%clk 0:01:48.8]} 26. Qd2
{[%clk 0:01:05.5]} 26... Bd4+ {[%clk 0:01:48.5]} 27. Kh1 {[%clk 0:00:59]} 27...
Nf2+ {[%clk 0:01:48.2]} 28. Kg1 {[%clk 0:00:58]} 28... Ne4+ {[%clk 0:01:48.1]}
29. Qxd4 {[%clk 0:00:55.4]} 29... cxd4 {[%clk 0:01:49]} 30. fxe4 {[%clk
0:00:55.6]} 30... fxe4 {[%clk 0:01:49.6]} 31. Ne6 {[%clk 0:00:54.9]} 31... e3
{[%clk 0:01:41.3]} 32. Nxd4 {[%clk 0:00:36.3]} 32... Qd3 {[%clk 0:01:40.2]} 0-1

[Event "*** Titled Tuesday Blitz"]
[Site "Chess.com"]
[Date "2020.04.21"]
[Round "8"]
[White "otrov-11"]
[Black "grandcoach"]
[Result "1-0"]
[WhiteElo "2373"]
[BlackElo "1990"]
[TimeControl "180+1"]
[EndTime "11:36:56 PDT"]
[Termination "otrov-11 won on time"]

1. d4 {[%clk 0:03:00.9]} 1... Nf6 {[%clk 0:02:59.2]} 2. c4 {[%clk 0:03:00.9]}
2... e6 {[%clk 0:02:59.1]} 3. Nf3 {[%clk 0:03:00.6]} 3... d5 {[%clk 0:02:58.5]}
4. g3 {[%clk 0:03:00.2]} 4... dxc4 {[%clk 0:02:54]} 5. Qa4+ {[%clk 0:02:58.7]}
5... Nc6 {[%clk 0:02:52.3]} 6. Qxc4 {[%clk 0:02:59.6]} 6... Qd5 {[%clk
0:02:29.8]} 7. Nbd2 {[%clk 0:02:59]} 7... Bb4 {[%clk 0:02:26.6]} 8. Qd3 {[%clk
0:02:53]} 8... b6 {[%clk 0:02:18.9]} 9. Bg2 {[%clk 0:02:52.9]} 9... Bb7 {[%clk
0:02:17.2]} 10. a3 {[%clk 0:02:44.5]} 10... Bxd2+ {[%clk 0:02:08]} 11. Bxd2
{[%clk 0:02:45.4]} 11... Nxd4 {[%clk 0:02:03.8]} 12. Nh4 {[%clk 0:02:28.6]}
12... Rd8 {[%clk 0:00:48.2]} 13. Bxd5 {[%clk 0:02:26.3]} 13... Bxd5 {[%clk
0:00:48.8]} 14. Qxd4 {[%clk 0:02:17.1]} 14... Bxh1 {[%clk 0:00:47.1]} 15. Qa4+
{[%clk 0:02:17.7]} 15... b5 {[%clk 0:00:41.2]} 16. Qxb5+ {[%clk 0:02:12]} 16...
c6 {[%clk 0:00:41.7]} 17. Qa4 {[%clk 0:02:11.3]} 17... O-O {[%clk 0:00:35.7]}
18. f3 {[%clk 0:02:11]} 18... Rd5 {[%clk 0:00:17.3]} 19. Bc3 {[%clk 0:02:08.3]}
19... Nd7 {[%clk 0:00:14]} 20. Kf2 {[%clk 0:01:54.2]} 20... g5 {[%clk
0:00:11.8]} 21. Rxh1 {[%clk 0:01:54]} 21... gxh4 {[%clk 0:00:11.9]} 22. Qxh4
{[%clk 0:01:54.4]} 22... f6 {[%clk 0:00:09.3]} 23. Qg4+ {[%clk 0:01:52.3]} 23...
Kf7 {[%clk 0:00:07.9]} 24. e4 {[%clk 0:01:50.8]} 24... Rg5 {[%clk 0:00:06.7]}
25. Qf4 {[%clk 0:01:48.8]} 25... Nc5 {[%clk 0:00:06.1]} 26. Rd1 {[%clk
0:01:45.5]} 26... Kg8 {[%clk 0:00:01.1]} 27. Qc7 {[%clk 0:01:42.5]} 1-0

[Event "*** Titled Tuesday Blitz"]
[Site "Chess.com"]
[Date "2020.04.21"]
[Round "8"]
[White "Baby_Legs"]
[Black "evgenyermolaev"]
[Result "1-0"]
[WhiteElo "2717"]
[BlackElo "2506"]
[TimeControl "180+1"]
[EndTime "11:36:57 PDT"]
[Termination "Baby_Legs won by checkmate"]

1. d4 {[%clk 0:03:00.9]} 1... Nf6 {[%clk 0:02:58.9]} 2. c4 {[%clk 0:03:01.1]}
2... c5 {[%clk 0:02:58.5]} 3. d5 {[%clk 0:03:01]} 3... g6 {[%clk 0:02:58.6]} 4.
Nc3 {[%clk 0:03:00.9]} 4... Bg7 {[%clk 0:02:58.8]} 5. e4 {[%clk 0:03:01.1]} 5...
d6 {[%clk 0:02:59.1]} 6. Nge2 {[%clk 0:03:01.3]} 6... O-O {[%clk 0:02:59.1]} 7.
Ng3 {[%clk 0:03:01.3]} 7... e6 {[%clk 0:02:58.4]} 8. Be2 {[%clk 0:03:00]} 8...
exd5 {[%clk 0:02:46.5]} 9. cxd5 {[%clk 0:03:00.9]} 9... Nbd7 {[%clk 0:02:39.7]}
10. O-O {[%clk 0:03:00.7]} 10... Rb8 {[%clk 0:02:39.7]} 11. Bf4 {[%clk
0:02:51.8]} 11... Ne5 {[%clk 0:02:36]} 12. Qc2 {[%clk 0:02:43.1]} 12... Bd7
{[%clk 0:02:18.6]} 13. a4 {[%clk 0:02:42.2]} 13... b6 {[%clk 0:02:06.3]} 14. Nb5
{[%clk 0:02:37.3]} 14... Bxb5 {[%clk 0:01:54.1]} 15. axb5 {[%clk 0:02:38.2]}
15... Rb7 {[%clk 0:01:48.7]} 16. Ra3 {[%clk 0:02:36.9]} 16... Re7 {[%clk
0:01:28.4]} 17. Rd1 {[%clk 0:02:35]} 17... h5 {[%clk 0:01:18.4]} 18. f3 {[%clk
0:02:33.9]} 18... h4 {[%clk 0:01:10.5]} 19. Nh1 {[%clk 0:02:31.4]} 19... Nh5
{[%clk 0:01:04.8]} 20. Bg5 {[%clk 0:02:30.5]} 20... Bf6 {[%clk 0:01:04.2]} 21.
Be3 {[%clk 0:02:28.9]} 21... g5 {[%clk 0:00:53.9]} 22. Qd2 {[%clk 0:02:22.8]}
22... Rc7 {[%clk 0:00:51.1]} 23. g3 {[%clk 0:02:17.2]} 23... Ng6 {[%clk
0:00:34.8]} 24. f4 {[%clk 0:02:09]} 24... hxg3 {[%clk 0:00:17]} 25. hxg3 {[%clk
0:01:59.9]} 25... Nxg3 {[%clk 0:00:14.6]} 26. Nxg3 {[%clk 0:01:56.5]} 26... gxf4
{[%clk 0:00:13.2]} 27. Bxf4 {[%clk 0:01:55.9]} 27... Nxf4 {[%clk 0:00:09.7]} 28.
Qxf4 {[%clk 0:01:56.8]} 28... Be5 {[%clk 0:00:10.1]} 29. Qg4+ {[%clk 0:01:54.6]}
29... Kh8 {[%clk 0:00:10.3]} 30. Nf5 {[%clk 0:01:47.4]} 30... f6 {[%clk
0:00:08]} 31. Rh3+ {[%clk 0:01:47.2]} 31... Rh7 {[%clk 0:00:08]} 32. Qg7# {[%clk
0:01:47.1]} 1-0